[Event "FISCA IM Round Robin 2022"]
[Site "Cap Aurora"]
[Date "2022.06.25"]
[Round "5.1"]
[White "Voiteanu, Gabriel"]
[Black "Cosma, Ioan"]
[Result "0-1"]
[ECO "A30"]
[WhiteElo "2189"]
[BlackElo "2394"]
[Annotator "TA"]
[PlyCount "130"]
[EventDate "2022.06.22"]
[EventType "tourn"]
[EventCountry "ROU"]
[SourceTitle "playchess.com"]
[Source "ChessBase"]
[SourceQuality "1"]
[TimeControl "40/5400+30:900+30"]

{[%evp 23,130,27,37,13,37,0,-25,-15,34,0,0,-61,-68,-53,-53,-57,-66,-100,-14,-26,-19,-22,75,91,78,0,76,79,80,96,105,76,95,100,130,0,91,89,126,111,148,144,161,67,69,0,0,-70,-61,-81,-80,-212,-212,-211,-211,-216,-213,-197,-43,-43,-43,-43,-36,-36,-36,-35,-35,-35,-36,-56,-32,-49,-49,-49,-49,-49,-49,-49,-56,-64,-56,-145,-145,-326,-158,-158,-158,-158,-145,-145,-145,-145,-145,-145,-145,-145,-145,-29971,-29975,-29977,-29978,-29978,-29979,-29978,-29979,-29981,-29982,-29983,-29984]} 1. Nf3 {[%emt 0:03:03]} Nf6 {[%emt 0:00:55]} 2. g3 {[%emt 0:00:28]} b6 {[%emt 0:00:30]} 3. Bg2 {[%emt 0:00:24]} Bb7 {[%emt 0:00:13]} 4. O-O {[%emt 0:01:07]} e6 {[%emt 0:00:33]} 5. c4 {[%emt 0:01:42]} c5 {[%emt 0:00:22]} 6. b3 {[%emt 0:02:31]} Be7 {[%emt 0:02:04]} 7. Bb2 {[%emt 0:00:36]} O-O {[%emt 0:00:29]} 8. d4 {[%emt 0:06:51]} cxd4 {[%emt 0:00:48]} 9. Qxd4 {[%emt 0:00:47]} d6 {[%emt 0:02:04]} 10. Nc3 {[%emt 0:01:40]} a6 {[%emt 0:01:24]} 11. Rfd1 {[%emt 0:02:32]} Nbd7 {[%emt 0:00:59]} 12. Rac1 {[%emt 0:04:16]} Qc7 {[%emt 0:02:56]} 13. Qf4 {[%emt 0:12:38] 13.Nh4 is a critical line. A30: Symmetrical English: Double Fianchetto and Hedgehog.} Rac8 {[%emt 0:04:01]} 14. Ng5 {[%emt 0:05:20]} (14. e4 $14) 14... Bxg2 $11 {[%emt 0:10:54]} 15. Kxg2 {[%emt 0:00:07] [#] Black has an edge.} Nc5 $146 {[%emt 0:00:51]} (15... Qb7+ $11 {should be considered.} 16. Kg1 Nc5) ({Predecessor:} 15... Qb7+ 16. Qf3 Qb8 17. Nce4 Nxe4 18. Nxe4 b5 19. Qg4 Ne5 20. Bxe5 dxe5 21. Rd7 f5 {½-½ (40) Kholin,A (2412)-Ibadov,D (2285) Taganrog 2019}) 16. h4 {[%emt 0:13:35]} h6 {[%emt 0:03:34]} 17. Nf3 {[%emt 0:00:57]} ({White should play} 17. Nge4 $11) 17... Qb7 $1 $15 {[%emt 0:01:28]} 18. Kg1 {[%emt 0:01:11]} b5 {[%emt 0:01:42]} 19. cxb5 {[%emt 0:04:05]} axb5 {[%emt 0:00:28]} 20. Qb4 {[%emt 0:01:26]} Nfe4 {[%emt 0:08:53]} (20... Rb8 $1 $17 21. Nh2 d5) 21. Nd4 $11 {[%emt 0:18:18]} (21. Nxb5 d5 22. a4 f6 $17) 21... Nxc3 {[%emt 0:08:54]} 22. Bxc3 {[%emt 0:00:52]} Ne4 {[%emt 0:01:29]} (22... Rb8 $11 {remains equal.}) 23. Qxb5 $16 {[%emt 0:01:37]} Qa8 {[%emt 0:03:04]} 24. Ba1 {[%emt 0:16:27]} (24. Bb4 $16) 24... d5 (24... Rxc1 $1 $11 {keeps the balance.} 25. Rxc1 Qxa2) 25. a4 $1 Ba3 26. Rc6 Rxc6 27. Qxc6 (27. Nxc6 Rc8 28. Ne5 Bc5 $11) 27... Qb8 28. Qb5 Qc7 {[%cal Oe4g3]} 29. Qc6 Qb8 30. Kg2 $1 Bd6 {[%cal Rd6g3]} 31. Qb5 Qc7 {[%cal Rd6g3]} 32. Qd3 Qb6 33. e3 (33. Rc1 $18) 33... Rc8 $14 34. Nb5 (34. Bb2 $14) 34... Bxg3 $11 {[%cal Ob6b8]} 35. Qd4 ({Better is} 35. f3 $11 Nc5 36. Qc2 (36. Qc3 e5 $11)) 35... Qxd4 $15 {Dancing on a razor blade.} 36. Rxd4 Bb8 {Hoping for ...Rc2. Black is more active.} (36... Bxh4 $6 37. f3 Rc2+ 38. Kh3 $11) 37. b4 (37. Rd1 $17) 37... Rc2 38. Rxe4 dxe4 $19 {[%mdl 4096] Endgame KRB-KBN} 39. Bd4 f5 40. a5 g5 $2 (40... e5 $19 41. Bc5 Ra2) 41. hxg5 $15 (41. a6 f4 42. exf4 (42. a7 $2 f3+ 43. Kh3 Bxa7 $19) 42... gxf4 $17) 41... hxg5 {aiming for ...f4.} 42. a6 f4 43. exf4 (43. a7 $2 f3+ 44. Kh3 Bxa7 $1 {[%mdl 512]} 45. Bxa7 Rxf2 $19) 43... gxf4 44. Kh3 $1 (44. a7 $2 Bxa7 $1 {[%mdl 512]} 45. Bxa7 e3 $19) 44... e3 45. fxe3 ({Don't go for} 45. a7 $2 Bxa7 $1 {[%mdl 512]} 46. fxe3 Bxd4 47. exd4 Rc4 $19) 45... f3 46. e4 Rh2+ ({Don't do} 46... f2 47. Kg2 $16) 47. Kg4 f2 48. Bxf2 Rxf2 49. a7 {[#]} Bxa7 50. Nxa7 {KR-KN} Kf7 {Strongly threatening ...Kf6.} 51. Nc6 Rc2 52. b5 (52. Ne5+ $1 $15 Ke7 53. Kf3) 52... Rb2 $17 53. Nd4 $2 {[#]} (53. Kf4 $17) 53... Rb4 (53... e5 $1 $19 {[%cal Re5d4] is more deadly.} 54. Nf5 Ke6) 54. Nc6 Rxb5 55. Kf4 Kf6 56. e5+ Kg6 57. Ke4 Kg5 58. Nd4 Rb4 59. Kd3 Rb6 {( -> ...Kf4)} 60. Kc4 $2 {[%mdl 8192]} (60. Ke4 $17) 60... Kf4 {Black mates.} 61. Kc5 Ra6 62. Kb5 {[#]} Kxe5 $1 63. Nf3+ Kf4 64. Nd4 Rd6 65. Kc5 {[#]} Rxd4 $1 {What a bad dream for White.  Weighted Error Value: White=0.34/Black=0.22 (precise)} 0-1

[Event "FISCA IM Round Robin 2022"]
[Site "Cap Aurora"]
[Date "2022.06.25"]
[Round "5.2"]
[White "Sanz Wawer, Daniel"]
[Black "Ciolacu, Alessia-Mihaela"]
[Result "1/2-1/2"]
[ECO "C93"]
[WhiteElo "2363"]
[BlackElo "2198"]
[Annotator "TA"]
[PlyCount "144"]
[EventDate "2022.06.22"]
[EventType "tourn"]
[EventCountry "ROU"]
[SourceTitle "playchess.com"]
[Source "ChessBase"]
[SourceQuality "1"]
[TimeControl "40/5400+30:900+30"]

{[%evp 23,144,10,30,22,42,48,51,63,75,47,58,-25,-19,-19,0,0,13,28,23,17,3,-41,0,0,49,0,78,80,46,36,66,50,62,59,50,47,64,0,10,0,52,0,221,222,206,220,402,402,459,424,451,0,324,0,381,80,217,197,190,18,171,8,170,0,0,0,0,-6,-8,-10,0,0,1,0,3,0,0,0,6,0,8,0,0,0,0,0,0,0,0,0,0,0,0,0,0,0,0,0,0,0,0,0,0,0,0,0,0,0,0,0,0,0,0,0,0,0,0,0,0,0,0,0,0]} 1. e4 {[%emt 0:00:21]} e5 {[%emt 0:00:06]} 2. Nf3 {[%emt 0:00:11]} Nc6 {[%emt 0:00:06]} 3. Bb5 {[%emt 0:00:07]} a6 {[%emt 0:00:20]} 4. Ba4 {[%emt 0:00:07]} Nf6 {[%emt 0:00:06]} 5. O-O {[%emt 0:00:11]} Be7 {[%emt 0:00:11]} 6. Re1 {[%emt 0:00:07]} b5 {[%emt 0:00:05]} 7. Bb3 {[%emt 0:00:05]} d6 {[%emt 0:00:10]} 8. c3 {[%emt 0:00:08]} O-O {[%emt 0:00:23]} 9. h3 {[%emt 0:00:05]} Bb7 {[%emt 0:00:46]} 10. d4 {[%emt 0:00:51]} Re8 {[%emt 0:01:03]} 11. Nbd2 {[%emt 0:03:17]} Bf8 {[%emt 0:00:24]} 12. Bc2 {[%emt 0:06:25]} h6 {[%emt 0:00:46]} 13. b3 {[%emt 0:06:18] C93: Closed Ruy Lopez: Smyslov Variation.} exd4 {[%emt 0:06:27]} 14. cxd4 {[%emt 0:00:31]} Nb4 {[%emt 0:08:58]} 15. Bb1 $1 {[%emt 0:02:37] [#] White is slightly better.} c5 $146 {[%emt 0:00:17]} ({Predecessor:} 15... g6 16. Bb2 Bg7 17. a3 Nc6 18. Bd3 Nd7 19. Qc2 Rc8 20. Rad1 Qe7 21. Qb1 Nb6 {1-0 (31) Pourramezanali,A (2537)-Sindarov,J (2474) Hamedan 2018}) 16. a3 {[%emt 0:12:21]} (16. d5 $5 {[%cal Ra2a3]}) 16... Nc6 {[%emt 0:00:09]} 17. Bb2 {[%emt 0:11:18]} (17. d5 $1 $14 Ne7 18. a4) 17... cxd4 $11 {[%emt 0:04:20]} 18. Nxd4 {[%emt 0:01:16]} Nxd4 {[%emt 0:00:41]} 19. Bxd4 {[%emt 0:00:07]} Nd7 {[%emt 0:05:48]} 20. b4 {[%emt 0:06:03]} Be7 {[%emt 0:03:52]} 21. Nb3 {[%emt 0:03:45]} Rc8 {[%emt 0:08:50]} 22. f4 {[%emt 0:05:00]} Bf6 {[%emt 0:12:36]} (22... Bh4 $5 {[%cal Rh4e1]} 23. Re3 Bf6 $11) 23. Ra2 {[%emt 0:01:17]} Rc4 {[%emt 0:19:21]} (23... Bxd4+ $11 24. Nxd4 Qb6) 24. Rd2 {[%emt 0:05:49]} (24. Bf2 $1 $14) 24... Qa8 {[%emt 0:01:51] [#]} (24... Qc7 $11 {keeps the balance.}) 25. Bxf6 $1 $16 {[%emt 0:10:34]} Nxf6 {[%emt 0:00:01]} 26. Na5 {[%emt 0:00:57]} Rcc8 {[%emt 0:06:21][%cal Rb7e4]} 27. Nxb7 {[%emt 0:00:49]} Qxb7 {[%emt 0:00:02]} 28. e5 {[%emt 0:11:51]} dxe5 {[%emt 0:00:47]} 29. fxe5 {[%emt 0:00:12]} Nh7 {[%emt 0:00:13]} 30. Kh1 {[%emt 0:01:53] Active counter play!} (30. Rd6 $14) 30... Nf8 {[%emt 0:04:35]} 31. Qh5 {[%emt 0:01:33]} Qc7 {[%emt 0:05:53]} (31... Rc3 $11) 32. Rf2 {[%emt 0:02:20]} (32. Ba2 $1 $14) 32... g6 $2 {[%emt 0:01:51]} (32... Rcd8 $11) 33. Qxh6 $18 {[%emt 0:01:38] And now Ba2 would win.} Rxe5 {[%emt 0:00:09]} 34. Ref1 {[%emt 0:01:05]} Rce8 $2 {[%emt 0:00:45]} (34... Rh5 35. Qe3 Qc3 36. Qxc3 Rxc3) 35. Ba2 {[%emt 0:01:17][%cal Rf2f7]} Ne6 {[%emt 0:00:17]} 36. Rf6 {[%emt 0:01:44][%cal Of6g6] Rxg6+! would kill now.} Qd7 {[%emt 0:01:33]} 37. Bb1 $2 {[%emt 0:02:53]} (37. Kh2 $18) 37... Nf8 $2 {[%emt 0:00:56][%mdl 8192]} (37... Rh5 $11 {and Black has nothing to worry.} 38. Qe3 Ng5) 38. Ba2 {[%emt 0:00:59]} (38. Rxa6 $2 Re1 39. Raf6 Qd1 $17) 38... Ne6 {[%emt 0:00:12]} 39. Qh4 $2 {[%emt 0:00:48]} (39. Kh2 $18 {is more deadly.}) 39... Re2 {[%emt 0:01:09]} (39... Rh5 $2 40. Qe4 Rh7 41. Bd5 $18) (39... Re7 $16 {keeps fighting.}) 40. Bb1 {[%emt 0:00:30]} ({But not} 40. Rxf7 Qxf7 41. Rxf7 Kxf7 42. Qh7+ Kf6) 40... Qd5 {[%emt 0:01:20][%csl Ge2][%cal Rd5g2] [#]} 41. Qg3 {[%emt 0:15:36]} (41. Qg4 $1 $18 Nf8 42. Rxf7 Qxf7 43. Rxf7 Kxf7 44. Kh2 (44. Qf3+ Kg7 $16)) 41... Nf8 {[%emt 0:15:12]} (41... Re7 $1 $11 {and Black is okay.}) 42. R6f5 $2 {[%emt 0:00:47]} (42. Rxf7 $18 Qxf7 43. Rxf7 Kxf7 44. Kh2) 42... Qe6 $2 {[%emt 0:01:49]} (42... Rxg2 $11 {and Black stays safe.} 43. Qxg2 (43. Rxd5 $2 {is the wrong capture.} Rxg3 44. Rd3 Rxd3 $19) 43... Qxg2+ 44. Kxg2 gxf5) 43. R5f3 $2 {[%emt 0:00:07]} ({Only move:} 43. Rxf7 $18 {[%cal Ob1g6] White threatens Bxg6! and mate.} Qxf7 44. Rxf7 Kxf7 45. Kh2) 43... Re7 $11 {[%emt 0:03:21] The position is equal.} 44. Bd3 {[%emt 0:00:29]} Re3 {[%emt 0:01:13]} 45. Qf4 {[%emt 0:00:42]} Rxf3 {[%emt 0:00:27]} 46. Rxf3 {[%emt 0:00:30]} Qe1+ {[%emt 0:00:46]} (46... Nd7 {with more complications.} 47. Qd4 Qc6 48. Rf1 Qc7) 47. Kh2 {[%emt 0:00:40]} Qe5 {[%emt 0:00:19]} 48. Qxe5 {[%emt 0:00:26]} Rxe5 {[%emt 0:00:02][%mdl 4096] Endgame KRB-KRN} 49. Bc2 {[%emt 0:00:39]} Ne6 {[%emt 0:00:56]} 50. Bb3 {[%emt 0:00:21]} Kg7 {[%emt 0:00:22]} 51. Rd3 {[%emt 0:00:20]} Kf6 {[%emt 0:01:20]} 52. Rd6 {[%emt 0:00:34]} Re3 $1 {[%emt 0:00:22]} 53. Bxe6 {[%emt 0:00:31]} Rxe6 {[%emt 0:00:01]} 54. Rxe6+ {[%emt 0:00:26]} Kxe6 {[%emt 0:00:21] KP-KP} 55. Kg3 {[%emt 0:00:15]} Kf5 {[%emt 0:00:28]} 56. Kf3 {[%emt 0:00:05]} g5 {[%emt 0:01:38]} 57. Ke3 {[%emt 0:00:36]} Ke5 {[%emt 0:00:37]} 58. g3 {[%emt 0:00:18]} f6 {[%emt 0:00:44]} 59. h4 {[%emt 0:00:50] Intending Kf3 and mate.} Kf5 $1 {[%emt 0:00:41]} 60. Kf3 {[%emt 0:00:30] Threatens to win with g4+.} Kg6 {[%emt 0:00:04]} 61. Kg2 {[%emt 0:01:15]} Kh5 {[%emt 0:00:14]} 62. Kh3 {[%emt 0:00:23]} f5 {[%emt 0:00:05] ( -> ...gxh4)} 63. hxg5 {[%emt 0:00:15]} Kxg5 {[%emt 0:00:02] K3P-K3P} 64. Kg2 {[%emt 0:00:09]} Kg4 {[%emt 0:00:05]} 65. Kf2 {[%emt 0:00:03]} f4 {[%emt 0:00:07]} 66. gxf4 {[%emt 0:00:03]} Kxf4 {[%emt 0:00:05] KPP-KPP} 67. Ke2 {[%emt 0:00:02]} Ke4 {[%emt 0:00:10]} 68. Kd2 {[%emt 0:00:03]} Kd4 {[%emt 0:00:06]} 69. Kc2 {[%emt 0:00:04]} Kc4 {[%emt 0:00:21]} 70. Kb2 {[%emt 0:00:03]} Kd3 {[%emt 0:00:09]} 71. Kb3 {[%emt 0:00:04]} Kd4 {[%emt 0:00:04]} 72. Kb2 {[%emt 0:00:40]} Ke5 {[%emt 0:05:39] Black escapes into a draw.  Weighted Error Value: White=0.58/Black=0.53} 1/2-1/2

[Event "FISCA IM Round Robin 2022"]
[Site "Cap Aurora"]
[Date "2022.06.25"]
[Round "5.3"]
[White "Antonica, Dragos-Andrei"]
[Black "Manolache, Marius"]
[Result "1/2-1/2"]
[ECO "A15"]
[WhiteElo "2355"]
[BlackElo "2481"]
[Annotator "TA"]
[PlyCount "22"]
[EventDate "2022.06.22"]
[EventType "tourn"]
[EventCountry "ROU"]
[SourceTitle "playchess.com"]
[Source "ChessBase"]
[SourceQuality "1"]
[TimeControl "40/5400+30:900+30"]

{[%evp 9,22,0,24,13,16,21,30,6,6,7,21,6,0,-2,10]} 1. Nf3 {[%emt 0:00:52]} Nf6 {[%emt 0:00:12]} 2. c4 {[%emt 0:00:12]} g6 {[%emt 0:00:21]} 3. b4 {[%emt 0:00:33]} e6 {[%emt 0:00:54]} 4. a3 {[%emt 0:02:23] [#]} a5 $146 {[%emt 0:00:48]} ({Predecessor:} 4... Bg7 5. Bb2 O-O 6. e3 b6 7. Be2 c5 8. O-O Nc6 9. d4 d6 10. b5 Na5 11. dxc5 dxc5 {1-0 (33) Bologan,V (2608)-Trent,L (2470) Caleta 2015}) 5. b5 {[%emt 0:02:26]} d5 {[%emt 0:00:54]} 6. Bb2 {[%emt 0:03:23] A15: English Opening: 1...Nf6.} Bg7 {[%emt 0:00:22]} 7. e3 {[%emt 0:02:38]} Nbd7 {[%emt 0:05:08]} 8. a4 {[%emt 0:06:55]} O-O {[%emt 0:00:31] The position is equal.} 9. Be2 {[%emt 0:02:45]} Re8 {[%emt 0:13:08]} 10. d4 {[%emt 0:08:39]} c5 {[%emt 0:01:18]} 11. bxc6 {[%emt 0:12:12]} bxc6 {[%emt 0:00:08] A rather calm draw.  Weighted Error Value: White=0.06 (flawless) /Black=0.08 (flawless)} 1/2-1/2

[Event "FISCA IM Round Robin 2022"]
[Site "Cap Aurora"]
[Date "2022.06.25"]
[Round "5.4"]
[White "Cosman, Andreea-Marioara"]
[Black "Buzbuchi, Ionut"]
[Result "1-0"]
[ECO "A65"]
[WhiteElo "2120"]
[BlackElo "2301"]
[Annotator "TA"]
[PlyCount "87"]
[EventDate "2022.06.22"]
[EventType "tourn"]
[EventCountry "ROU"]
[SourceTitle "playchess.com"]
[Source "ChessBase"]
[SourceQuality "1"]
[TimeControl "40/5400+30:900+30"]

{[%evp 23,87,27,35,28,65,13,27,10,17,29,87,55,77,92,135,131,142,158,161,137,144,144,111,8,18,0,0,0,0,0,0,0,17,25,30,31,154,151,166,172,172,172,152,172,162,168,160,172,133,154,145,126,158,42,38,32,46,0,0,0,0,0,0,0,604,561]} 1. d4 {[%emt 0:00:03]} Nf6 {[%emt 0:00:05]} 2. c4 {[%emt 0:00:07]} g6 {[%emt 0:00:05]} 3. Nc3 {[%emt 0:00:04]} Bg7 {[%emt 0:00:08]} 4. e4 {[%emt 0:00:28]} d6 {[%emt 0:00:04]} 5. f3 {[%emt 0:00:06]} O-O {[%emt 0:00:18]} 6. Be3 {[%emt 0:00:10]} c5 {[%emt 0:00:08]} 7. Nge2 {[%emt 0:00:24]} Nc6 {[%emt 0:00:27]} 8. d5 {[%emt 0:01:03]} Ne5 {[%emt 0:01:24]} 9. Ng3 {[%emt 0:00:07]} e6 {[%emt 0:01:21]} 10. Be2 {[%emt 0:00:35]} exd5 {[%emt 0:00:06]} 11. cxd5 {[%emt 0:00:04]} a6 {[%emt 0:00:33]} 12. a4 {[%emt 0:00:06][%cal Ba2a4,Ba4a5][%mdl 32]} Bd7 {[%emt 0:05:03][%cal Ob7b5]} 13. O-O {[%emt 0:05:08] A65: Modern Benoni: 6 e4.} h5 {[%emt 0:18:20]} 14. h3 {[%emt 0:01:09]} (14. Qd2 $14) 14... h4 $11 {[%emt 0:12:16]} 15. Nh1 {[%emt 0:00:08] Hoping for f4. White has an edge.} b5 $1 {[%emt 0:00:03]} 16. Bg5 {[%emt 0:04:38] has lost popularity (16.axb5).} Qb6 {[%emt 0:09:52]} (16... c4 $11 {keeps the balance.}) 17. a5 {[%emt 0:05:50]} Qc7 {[%emt 0:05:45]} 18. f4 {[%emt 0:07:48]} Nc4 {[%emt 0:00:05]} 19. Bxc4 {[%emt 0:00:04]} bxc4 {[%emt 0:00:06]} 20. Bxh4 {[%emt 0:09:48]} Rfe8 {[%emt 0:04:41] [#]} 21. Qf3 $146 {[%emt 0:10:32]} ({Predecessor:} 21. Ng3 Nh7 22. Qd2 f6 23. Nge2 f5 24. Ng3 Rab8 25. exf5 gxf5 26. Qc2 Qb7 27. Nxf5 Bxf5 28. Qxf5 Qxb2 {½-½ (33) Roghani,A-Radovanovic,D (2225) Calicut 1998}) 21... Nh7 {[%emt 0:05:16]} 22. f5 $1 {[%emt 0:11:05]} g5 {[%emt 0:10:50]} 23. f6 {[%emt 0:07:03]} (23. Bg3 $16) 23... Bxf6 {[%emt 0:00:41]} 24. Bg3 {[%emt 0:00:13][%cal Oe4e5]} Bd4+ {[%emt 0:03:04]} 25. Kh2 {[%emt 0:02:29]} f6 {[%emt 0:01:48][%cal Og5g4]} 26. Nf2 {[%emt 0:02:38] Against g4} Rab8 {[%emt 0:01:00]} 27. Ra2 {[%emt 0:08:32]} Rb3 {[%emt 0:00:13]} 28. Qh5 {[%emt 0:02:59]} Re7 {[%emt 0:04:25]} 29. e5 {[%emt 0:12:39]} Bxe5 {[%emt 0:04:21]} (29... Bxc3 $2 30. bxc3 Be8 31. exd6 $18) (29... Rxe5 $14 30. Qg6+ (30. Bxe5 Bxe5+ 31. Kh1 Kg7 $14) 30... Kh8) 30. Bxe5 $16 {[%emt 0:00:07] The board is on fire.} Rxe5 {[%emt 0:00:20]} 31. Qg6+ {[%emt 0:00:05]} Kh8 {[%emt 0:00:29] [#] aiming for ...Bf5.} 32. Nfe4 $1 {[%emt 0:00:16]} ({Worse is} 32. Qh6 Bf5 33. Qh5 Qg7 $17) 32... Be8 {[%emt 0:00:24]} 33. Qh6 {[%emt 0:00:07]} Qg7 {[%emt 0:01:50]} 34. Qxg7+ {[%emt 0:04:19]} Kxg7 {[%emt 0:00:05]} 35. Nxd6 {[%emt 0:00:04]} Nf8 {[%emt 0:02:39]} 36. Nxc4 {[%emt 0:00:43] White is more active. Pair of Knights!} Re7 {[%emt 0:00:30]} 37. Nd6 {[%emt 0:00:30] And now Nf5+ would win.} Bg6 {[%emt 0:00:30] [#]} 38. Nf5+ {[%emt 0:00:30]} ({Better is} 38. Nc8 $1 $16 {[%cal Rc8e7]} Re3 39. Nb6) 38... Bxf5 $14 {[%emt 0:00:30]} 39. Rxf5 {[%emt 0:00:30]} Nd7 {[%emt 0:00:30]} 40. d6 {[%emt 0:00:30]} (40. Rf2 $14) 40... Re6 $11 {[%emt 0:00:30]} 41. Rd5 {[%emt 0:15:30]} Rb4 {[%emt 0:15:30]} 42. Ra1 {[%emt 0:00:30]} Rxb2 {[%emt 0:00:30]} 43. Na4 {[%emt 0:00:30][%csl LRb2,LRc5]} Ree2 {[%emt 0:00:30][%mdl 8192]} (43... Rc2 $11) 44. Nxb2 {[%emt 0:00:30] Weighted Error Value: White=0.22 (precise) /Black=0.42} 1-0

[Event "FISCA IM Round Robin 2022"]
[Site "Cap Aurora"]
[Date "2022.06.25"]
[Round "5.5"]
[White "Dev, Shah"]
[Black "Srinath, Rao S.V."]
[Result "1-0"]
[ECO "E73"]
[WhiteElo "2292"]
[BlackElo "2316"]
[Annotator "TA"]
[PlyCount "87"]
[EventDate "2022.06.22"]
[EventType "tourn"]
[EventCountry "ROU"]
[SourceTitle "playchess.com"]
[Source "ChessBase"]
[SourceQuality "1"]
[TimeControl "40/5400+30:900+30"]

{[%evp 14,87,54,36,41,34,58,56,63,41,63,58,61,43,65,60,95,99,126,124,157,83,95,0,135,115,114,110,124,52,44,7,21,0,76,-33,133,-7,191,189,185,108,93,81,295,317,312,311,310,261,620,277,279,270,858,420,406,414,405,383,390,359,377,351,389,366,6412,5656,5285,5422,1999,1628,29990,29991,29991,29992]} 1. d4 {[%emt 0:00:31]} Nf6 {[%emt 0:00:38]} 2. c4 {[%emt 0:00:07]} g6 {[%emt 0:00:06]} 3. Nc3 {[%emt 0:00:04]} Bg7 {[%emt 0:00:06]} 4. e4 {[%emt 0:00:05]} d6 {[%emt 0:00:05]} 5. Be2 {[%emt 0:00:04]} O-O {[%emt 0:00:20]} 6. Be3 {[%emt 0:00:06]} e5 {[%emt 0:00:43]} 7. d5 {[%emt 0:00:07]} Na6 {[%emt 0:00:06]} 8. h4 {[%emt 0:00:04]} Nc5 {[%emt 0:01:03] E73: King's Indian: Averbakh Variation without 6...c5.} 9. Qc2 {[%emt 0:00:07]} h5 {[%emt 0:01:14]} 10. f3 {[%emt 0:00:21]} c6 {[%emt 0:04:33] White is slightly better.} 11. b4 {[%emt 0:04:41]} Na6 {[%emt 0:03:23]} 12. a3 {[%emt 0:07:13]} cxd5 {[%emt 0:01:49]} 13. cxd5 {[%emt 0:00:07]} (13. Nxd5 Nc7 $11) 13... Bd7 {[%emt 0:02:33]} 14. Nh3 {[%emt 0:01:37] [#]} Bxh3 $146 {[%emt 0:00:48]} ({Predecessor:} 14... Qe7 15. Ng5 Rfc8 16. Qd2 Nc7 17. Kf2 Nce8 18. Rac1 Nh7 19. g3 Nf8 20. Kg2 f6 {1-0 (51) Nenezic,M (2528)-Radovanovic,N (2423) Paracin 2022}) 15. Rxh3 {[%emt 0:00:10]} (15. gxh3 Nh7 $11) 15... Rc8 {[%emt 0:00:12][%cal Of6d5]} 16. Qd2 {[%emt 0:01:28]} (16. Bxa7 Qc7 17. Rc1 Bh6 $15) 16... Qd7 {[%emt 0:10:46]} 17. Bxa7 {[%emt 0:03:20]} (17. Nb5 $142) 17... Ra8 $16 {[%emt 0:03:33]} 18. Nb5 {[%emt 0:10:06]} (18. Bb5 $16 Qc7 19. Bf2) 18... Ne8 {[%emt 0:04:54]} (18... b6 $1 $11 {remains equal.}) 19. Be3 {[%emt 0:16:56] White is much more active. The black rooks are badly placed.} f5 {[%emt 0:05:09]} 20. exf5 {[%emt 0:01:53]} gxf5 {[%emt 0:00:12]} 21. Bh6 {[%emt 0:00:40]} (21. Rc1 $16) 21... f4 $14 {[%emt 0:00:35]} 22. Bxg7 {[%emt 0:01:03]} (22. Bg5 $5 {[%cal Ra1a2]}) 22... Qxg7 {[%emt 0:04:39]} 23. Bc4 {[%emt 0:13:28]} e4 {[%emt 0:06:49]} (23... Rc8 $11 24. Rc1 Qd7) 24. Rd1 {[%emt 0:03:05]} ({White should play} 24. O-O-O $16) 24... Rc8 $2 {[%emt 0:15:49] [#]} (24... e3 $15 {keeps the upper hand.} 25. Qc2 Nac7) 25. Bb3 {[%emt 0:04:52]} (25. Qd4 $1 $16) 25... exf3 $2 {[%emt 0:13:04]} (25... e3 $11 26. Qe2 Qe5) 26. Rxf3 $18 {[%emt 0:00:50] Black must now prevent Nd4.} Nf6 {[%emt 0:00:04] [#] Threatens to win with ...Ne4.} (26... Nec7 $2 27. Nd4) 27. Kf1 {[%emt 0:05:43]} ({Don't go for} 27. Qxf4 $2 Rce8+ 28. Kf1 Ne4 $19) (27. Nxd6 Qe7+ 28. Qe2 Qxd6 29. Qe6+ Qxe6+ 30. dxe6 Kg7 $15) (27. Nd4 $1 $18 {[%cal Rd4e6]}) 27... Ne4 $16 {[%emt 0:05:44]} 28. Qd3 {[%emt 0:02:15]} Rce8 {[%emt 0:00:09]} (28... Ng3+ $16 29. Kg1 Nb8) 29. Nd4 $18 {[%emt 0:01:56]} Ng3+ {[%emt 0:11:05]} 30. Kg1 {[%emt 0:01:05] And now Ne6 would win.} Qg4 {[%emt 0:02:17]} 31. Ne6 {[%emt 0:00:52] Inhibits Nc7.} (31. Bc2 Re7 $16) 31... Rf6 $2 {[%emt 0:01:53]} (31... Nc7 32. Rc1 (32. Nxc7 Ne2+ 33. Kf1 Ng3+ 34. Kg1 Ne2+ 35. Kh1 Ng3+ 36. Kg1 $11) (32. Nxf8 Kxf8 33. Qc4 Kg8 $16) 32... Nxe6 33. dxe6 Rf5 34. e7+ Kg7) 32. Bc2 {[%emt 0:01:32]} (32. Ba4 $142 Re7 33. Rc1 Rfxe6 34. dxe6) 32... Re7 {[%emt 0:00:11]} 33. Nxf4 {[%emt 0:00:10] Dancing on a razor blade.} Nf5 {[%emt 0:01:47]} (33... Ne2+ 34. Nxe2 Rxf3 35. Qxf3 Qxf3 36. gxf3 Rxe2) 34. Nxh5 {[%emt 0:01:48]} Qxh5 {[%emt 0:00:22]} 35. Rxf5 {[%emt 0:00:05]} Qxh4 {[%emt 0:00:07]} 36. Rxf6 {[%emt 0:01:26]} Qxf6 {[%emt 0:00:05]} 37. Rf1 {[%emt 0:01:15]} Qg5 {[%emt 0:00:17]} 38. Rf3 {[%emt 0:07:12] Rg3 would kill now.} Rg7 {[%emt 0:01:16][%csl Gg7][%cal Rg5g2]} 39. Qf1 {[%emt 0:00:36][%csl Gf1][%cal Rf3f8]} Re7 $2 {[%emt 0:00:20]} (39... Qe7 40. Qf2 Nc7) 40. Qf2 {[%emt 0:01:23] Intending Rg3 and mate.} Qe5 {[%emt 0:00:59]} 41. Rg3+ {[%emt 0:21:04]} Rg7 {[%emt 0:15:05]} 42. Re3 {[%emt 0:01:17]} Qh5 {[%emt 0:00:17]} 43. Qf6 {[%emt 0:00:32]} Rg5 {[%emt 0:01:17]} 44. Qd8+ {[%emt 0:00:57] Weighted Error Value: White=0.49/Black=0.76} 1-0